bitfinex-derivatives/quotes_SOLF0:USTF0_20230102
["timestamp","ask_amount","ask_price","bid_price","bid_amount"]
[1672649983706,5.0,11.185,11.178,8.9]
[1672649984229,8.9,11.188,11.179,8.9]
[1672649984444,5.0,11.187,11.179,8.9]
[1672649985279,8.9,11.188,11.179,8.9]
[1672649985699,13.9,11.189,11.181,8.9]
[1672649986121,52.28200986,11.19,11.182,8.9]
[1672649986324,52.28200986,11.19,11.184,8.9]
[1672649989589,5.0,11.189,11.184,8.9]
[1672649991164,52.28200986,11.19,11.184,8.9]
[1672649992951,5.0,11.189,11.184,8.9]
[1672649993479,5.0,11.189,11.176,53.3505]
[1672649993480,5.0,11.189,11.181,8.9]
[1672649997470,61.12200986,11.19,11.181,8.9]
[1672649997885,0.11950986,11.19,11.183,8.9]
[1672649998104,5.11950986,11.192,11.184,8.9]
[1672649998310,5.0,11.192,11.184,8.9]
[1672649999360,8.9,11.191,11.183,8.9]
[1672649999568,13.9,11.19,11.181,8.9]
[1672650000935,8.9,11.19,11.181,8.9]
[1672650002931,8.9,11.188,11.18,8.9]
[1672650003142,5.0,11.187,11.18,8.9]
[1672650003771,13.84,11.187,11.178,8.9]
[1672650003981,52.5328,11.186,11.178,8.9]
[1672650004296,5.0,11.185,11.178,8.9]
[1672650004615,52.5328,11.186,11.178,8.9]
[1672650005668,5.0,11.185,11.178,8.9]
[1672650006190,52.5328,11.186,11.178,8.9]
[1672650006613,5.0,11.185,11.178,8.9]
[1672650008188,52.5328,11.186,11.178,8.9]
[1672650010602,5.0,11.185,11.178,8.9]
[1672650012913,57.5328,11.186,11.178,8.9]
[1672650013123,52.5328,11.186,11.178,8.9]
[1672650015544,8.9,11.188,11.18,8.9]
[1672650018699,8.9,11.187,11.178,8.9]
[1672650018899,5.0,11.186,11.178,8.9]
[1672650019425,8.9,11.188,11.18,8.9]
[1672650019847,8.9,11.185,11.179,3.28370584]
[1672650020057,8.9,11.185,11.177,8.9]
[1672650020587,5.0,11.184,11.177,8.9]
[1672650021218,8.9,11.185,11.177,8.9]
[1672650026156,8.84,11.183,11.175,8.9]
[1672650026890,8.84,11.183,11.176,3.28547216]
[1672650029725,5.0,11.184,11.178,5.0]
[1672650030143,5.0,11.184,11.177,8.9]
[1672650030358,8.9,11.185,11.177,8.9]
[1672650033825,8.9,11.183,11.175,8.9]
[1672650034035,5.0,11.182,11.175,8.9]
[1672650034249,5.0,11.182,11.176,3.28565176]
[1672650034662,8.9,11.183,11.176,3.28565176]
[1672650035509,8.91,11.183,11.176,3.28565176]
[1672650035817,8.91,11.185,11.177,8.86]
[1672650036026,5.0,11.184,11.177,8.86]
[1672650038027,8.91,11.185,11.177,8.86]
[1672650039817,8.91,11.183,11.175,8.91]
[1672650040026,8.83,11.185,11.177,8.91]
[1672650040339,8.83,11.185,11.178,5.0]
[1672650040544,9.02884233,11.186,11.178,13.91]
[1672650041390,0.11884233,11.186,11.181,8.89]
[1672650041603,8.89,11.189,11.181,8.89]
[1672650042127,8.89,11.189,11.182,3.28382483]
[1672650042752,8.83,11.186,11.182,3.28382483]
[1672650042966,8.83,11.186,11.178,8.89]
[1672650045068,8.83,11.184,11.176,8.91]
[1672650045277,5.0,11.183,11.176,8.91]
[1672650045908,8.83,11.184,11.176,8.91]
[1672650046429,0.11886108,11.188,11.183,8.91]
[1672650046642,8.91,11.193,11.185,8.89]
[1672650046847,8.91,11.189,11.177,3.28393194]
[1672650047063,50.0,11.192,11.172,35.64]
[1672650047269,5.11886108,11.191,11.173,5.0]
[1672650047484,8.91,11.186,11.177,8.9]
[1672650047800,5.0,11.185,11.177,8.9]
[1672650048004,8.91,11.187,11.179,8.84]
[1672650048218,8.91,11.186,11.178,8.91]
[1672650053680,8.91,11.187,11.179,8.89]
[1672650053896,0.11886108,11.189,11.168,72.16]
[1672650053897,8.89,11.183,11.175,8.86]
[1672650054523,8.89,11.183,11.176,3.28558661]
[1672650054943,8.89,11.183,11.175,8.86]
[1672650067970,8.91,11.176,11.162,8.86]
[1672650068185,8.91,11.171,11.162,8.86]
[1672650068603,8.91,11.171,11.163,3.28874256]
[1672650068919,8.89,11.172,11.164,5.0]
[1672650069340,8.89,11.172,11.163,12.12874256]
[1672650069551,8.89,11.172,11.165,3.28874256]
[1672650069972,8.89,11.172,11.163,8.84]
[1672650069973,8.89,11.172,11.164,3.28874256]
[1672650074701,13.91,11.171,11.164,3.28874256]
[1672650074913,5.0,11.17,11.164,3.28874256]
[1672650075124,5.0,11.17,11.163,3.28874256]
[1672650075647,13.91,11.171,11.163,3.28874256]
[1672650076064,8.91,11.165,11.156,8.9]
[1672650076277,5.0,11.17,11.142,35.66]
[1672650076278,13.91,11.164,11.155,8.91]
[1672650076488,5.0,11.163,11.157,3.29045955]
[1672650076798,5.0,11.163,11.156,3.29045955]
[1672650077750,8.89,11.162,11.156,3.29045955]
[1672650077961,5.0,11.161,11.156,3.29045955]
[1672650078276,5.0,11.161,11.154,3.29045955]
[1672650078693,8.89,11.162,11.154,3.29045955]
[1672650079539,57.5184,11.163,11.155,8.91]
[1672650079752,5.0,11.162,11.155,8.91]
[1672650080064,5.0,11.162,11.156,3.29045955]
[1672650080274,13.91,11.162,11.156,3.29045955]
[1672650080797,5.0,11.161,11.137,50.0]
[1672650081006,8.91,11.147,11.138,67.34]
[1672650081218,8.91,11.147,11.123,35.46]
[1672650081219,8.91,11.142,11.132,8.89]
[1672650081531,8.91,11.142,11.125,52.9056]
[1672650081532,0.11939693,11.151,11.139,3.29592985]
[1672650081743,53.80779693,11.151,11.139,3.29592985]
[1672650081953,8.91,11.14,11.129,8.86]
[1672650082158,8.83,11.137,11.128,8.91]
[1672650082374,8.91,11.129,11.108,8.86]
[1672650082583,5.0,11.139,11.097,50.0]
[1672650082584,0.11939693,11.137,11.097,50.0]
[1672650082793,5.11939693,11.131,11.109,3.30224092]
[1672650083004,5.0,11.131,11.117,50.0]
[1672650083210,0.11939693,11.138,11.13,8.91]
[1672650083425,8.91,11.13,11.127,8.84]
[1672650083743,0.11939693,11.138,11.129,8.91]
[1672650084057,0.11939693,11.14,11.13,5.0]
[1672650084270,5.0,11.151,11.14,5.0]
[1672650084582,13.89,11.146,11.14,5.0]
[1672650084790,5.0,11.146,11.138,8.91]
[1672650085213,5.0,11.151,11.141,8.9]
[1672650085214,8.91,11.149,11.141,8.9]
[1672650085423,5.0,11.148,11.141,8.9]
[1672650085737,21.48792089,11.148,11.141,8.9]
[1672650086159,13.89,11.148,11.139,8.89]
[1672650086370,5.0,11.151,11.144,8.9]
[1672650086578,52.1366,11.152,11.144,8.9]
[1672650087099,52.1366,11.152,11.145,8.86]
[1672650087629,8.91,11.155,11.147,8.91]
[1672650087839,8.83,11.148,11.138,8.91]
[1672650088146,8.91,11.144,11.135,8.89]
[1672650088567,5.0,11.143,11.135,8.89]
[1672650088784,13.91,11.143,11.134,8.84]
[1672650088992,5.0,11.143,11.135,13.9]
[1672650089204,5.0,11.145,11.137,8.84]
[1672650089408,5.0,11.147,11.139,8.9]
[1672650090679,8.91,11.146,11.137,8.86]
[1672650091317,8.91,11.138,11.117,50.0]
[1672650091521,5.0,11.137,11.129,8.91]
[1672650092249,8.91,11.136,11.127,8.89]
[1672650092460,5.0,11.134,11.126,8.86]
[1672650093405,5.0,11.137,11.129,8.91]
[1672650093618,13.91,11.134,11.125,8.91]
[1672650094032,0.11996099,11.136,11.129,5.0]
[1672650094456,0.11996099,11.136,11.129,13.86]
[1672650094981,0.11996099,11.136,11.129,8.86]
[1672650095506,0.11996099,11.136,11.134,8.86]
[1672650095717,5.0,11.142,11.134,8.86]
[1672650095927,8.91,11.141,11.132,8.91]
[1672650096135,13.91,11.14,11.131,8.89]
[1672650096345,8.91,11.138,11.129,8.91]
[1672650096552,8.91,11.135,11.128,5.0]
[1672650096874,8.91,11.135,11.126,8.91]
[1672650098661,5.0,11.137,11.129,8.91]
[1672650098872,13.91,11.138,11.13,5.0]
[1672650099082,8.91,11.135,11.126,8.9]
[1672650099289,5.0,11.134,11.126,8.9]
[1672650099500,5.0,11.134,11.128,8.91]
[1672650099709,13.91,11.138,11.129,13.9]
[1672650099920,8.91,11.136,11.129,5.0]
[1672650100131,5.0,11.135,11.128,8.84]
[1672650100866,8.91,11.136,11.128,8.84]
[1672650101280,58.37,11.139,11.131,8.91]
[1672650101492,49.46,11.139,11.132,8.86]
[1672650101812,13.91,11.138,11.129,8.91]
[1672650102021,5.0,11.137,11.129,8.91]
[1672650102445,5.0,11.137,11.126,8.99]
[1672650103176,13.96,11.138,11.126,8.99]
[1672650103382,49.46,11.139,11.129,8.99]
[1672650103590,5.0,11.138,11.129,8.99]
[1672650105595,54.46,11.139,11.129,8.99]
[1672650106749,49.46,11.139,11.129,8.99]
[1672650107690,5.0,11.138,11.129,8.99]
[1672650108534,49.46,11.139,11.129,8.99]
[1672650108745,0.11940105,11.141,11.13,5.0]
[1672650108955,50.59440105,11.142,11.133,5.0]
[1672650110010,5.0,11.141,11.132,8.99]
[1672650110325,5.0,11.141,11.129,8.99]
[1672650110534,55.59440105,11.142,11.13,5.0]
[1672650110746,55.59440105,11.142,11.132,8.99]
[1672650111581,67.19,11.162,11.141,8.99]
[1672650111794,689.5584,11.162,11.147,0.11929938]
[1672650112007,689.5584,11.162,11.134,0.11929938]
[1672650112008,50.0,11.152,11.134,0.11929938]
[1672650112216,5.0,11.151,11.133,5.11929938]
[1672650112427,5.0,11.151,11.134,0.11929938]
[1672650112639,5.0,11.151,11.138,8.99]
[1672650112845,8.97,11.149,11.138,8.99]
[1672650113059,5.0,11.148,11.138,8.99]
[1672650113582,5.0,11.148,11.14,8.91]
[1672650113794,5.0,11.149,11.14,8.91]
[1672650114425,53.5584,11.15,11.14,8.91]
[1672650114629,8.96,11.158,11.145,8.9]
[1672650114846,5.0,11.157,11.146,5.11929938]
[1672650115159,5.0,11.157,11.146,0.11929938]
[1672650117366,50.0932,11.161,11.15,8.99]
[1672650117577,5.0,11.16,11.15,8.99]
[1672650117788,21.47421595,11.16,11.15,8.99]
[1672650118201,5.0,11.16,11.15,8.99]
[1672650119047,50.0932,11.161,11.153,8.9]
[1672650119463,50.0932,11.161,11.154,5.0]
[1672650119887,50.0932,11.161,11.153,8.9]
[1672650120623,5.0,11.169,11.158,8.99]
[1672650121253,16.4633639,11.168,11.158,8.99]
[1672650121463,5.0,11.167,11.156,8.94]
[1672650121882,8.96,11.165,11.153,8.99]
[1672650122097,8.92,11.158,11.151,0.11929938]
[1672650122306,8.92,11.158,11.146,0.11929938]
[1672650122728,5.0,11.157,11.146,0.11929938]
[1672650122933,55.6739,11.157,11.146,0.11929938]
[1672650123146,16.47505473,11.156,11.146,0.11929938]
[1672650123354,13.96,11.155,11.146,0.11929938]
[1672650123989,13.96,11.155,11.142,8.95]
[1672650126088,13.8448006,11.155,11.143,5.0]
[1672650126611,55.6739,11.157,11.145,8.91]
[1672650127037,16.47486239,11.156,11.145,8.91]
[1672650127349,5.0,11.155,11.145,8.91]
[1672650127560,5.0,11.155,11.147,8.93]
[1672650127770,21.47486239,11.156,11.147,8.93]
[1672650127975,5.0,11.156,11.147,8.93]
[1672650129345,5.0,11.152,11.142,8.91]
[1672650130817,8.97,11.153,11.142,8.91]
[1672650131029,8.96,11.156,11.144,8.99]
[1672650131238,5.0,11.155,11.145,5.0]
[1672650131762,8.96,11.156,11.145,5.0]
[1672650131971,50.6739,11.157,11.148,5.0]
[1672650132394,50.0,11.173,11.152,8.9]
[1672650132606,53.8803,11.162,11.152,8.9]
[1672650132818,8.99,11.157,11.153,0.1196809]
[1672650133023,5.0,11.156,11.153,0.1196809]
[1672650134387,8.99,11.157,11.153,0.1196809]
[1672650134700,126.0703,11.162,11.153,0.1196809]
[1672650134701,62.8103,11.162,11.153,0.1196809]
[1672650134917,5.0,11.16,11.153,0.1196809]
[1672650135967,13.99,11.16,11.153,0.1196809]
[1672650136697,5.0,11.158,11.146,8.99]
[1672650137334,5.0,11.158,11.15,5.0]
[1672650137647,5.0,11.158,11.148,8.92]
[1672650137862,8.95,11.151,11.139,8.93]
[1672650138065,55.1308,11.15,11.139,8.93]
[1672650138278,5.0,11.149,11.139,8.93]
[1672650140911,13.99,11.149,11.136,9.06922209]
[1672650141120,13.99,11.149,11.136,8.95]
[1672650141536,8.99,11.147,11.135,8.99]
[1672650141747,8.99,11.144,11.131,8.95]
[1672650141959,50.9002,11.143,11.132,5.11922209]
[1672650142268,5.0,11.142,11.132,5.11922209]
[1672650142482,5.0,11.142,11.132,0.11922209]
[1672650145113,50.9002,11.143,11.134,8.9]
[1672650145324,50.9002,11.143,11.135,5.0]
[1672650145743,5.0,11.142,11.135,5.0]
[1672650145947,5.0,11.142,11.132,0.11922209]
[1672650147326,8.97,11.14,11.128,8.9]
[1672650147535,5.0,11.139,11.128,8.9]
[1672650149218,8.97,11.14,11.128,8.9]
[1672650150164,5.0,11.139,11.128,8.9]
[1672650150477,5.0,11.139,11.131,8.99]
[1672650150689,55.9002,11.143,11.133,8.91]
[1672650151003,5.0,11.147,11.137,0.11922209]
[1672650151213,48.9792,11.146,11.137,0.11922209]
[1672650151419,5.0,11.145,11.137,0.11922209]
[1672650152045,13.92,11.145,11.137,0.11922209]
[1672650153945,8.99,11.142,11.118,55.0]
[1672650154159,8.95,11.139,11.125,8.95]
[1672650154470,5.0,11.138,11.126,5.0]
[1672650154680,5.0,11.138,11.128,8.9]
[1672650155101,5.0,11.138,11.129,5.0]
[1672650155415,5.0,11.138,11.128,8.9]
[1672650155625,8.93,11.136,11.113,36.04]
[1672650155838,5.0,11.135,11.124,8.9]
[1672650156045,5.0,11.135,11.125,5.0]
[1672650156254,5.0,11.135,11.125,13.93]
[1672650156462,5.0,11.138,11.127,8.94]
[1672650156673,5.0,11.138,11.128,5.0]
[1672650157096,5.0,11.138,11.127,8.94]
[1672650158254,8.96,11.139,11.127,8.94]
[1672650158465,8.96,11.139,11.128,50.0]
[1672650158674,8.96,11.139,11.129,5.0]
[1672650159619,8.96,11.139,11.128,50.0]
[1672650159829,8.96,11.139,11.127,8.94]
[1672650160043,5.0,11.138,11.127,8.94]
[1672650160248,5.0,11.138,11.128,50.0]
[1672650160463,5.0,11.138,11.129,5.0]
[1672650160990,5.0,11.138,11.128,50.0]
[1672650161507,5.0,11.138,11.127,8.94]
[1672650163407,8.99,11.135,11.121,8.91]
[1672650163617,57.2716,11.134,11.122,5.0]
[1672650163827,5.0,11.133,11.123,8.99]
[1672650164037,5.0,11.133,11.125,8.93]
[1672650164247,5.0,11.133,11.124,5.0]
[1672650164770,8.99,11.137,11.124,5.0]
[1672650165184,8.99,11.137,11.123,8.99]
[1672650165399,5.0,11.136,11.123,8.99]
[1672650165609,57.2716,11.136,11.123,8.99]
[1672650166035,8.99,11.134,11.123,8.99]
[1672650166240,5.0,11.133,11.123,8.99]
[1672650168972,8.99,11.134,11.123,8.99]
[1672650169186,13.93,11.135,11.123,8.99]
[1672650171395,8.93,11.135,11.123,8.99]
[1672650172024,5.0,11.134,11.123,8.99]
[1672650172760,8.93,11.135,11.123,8.99]
[1672650173497,5.0,11.134,11.123,8.99]
[1672650174967,13.93,11.135,11.123,8.99]
[1672650176331,8.93,11.135,11.123,8.99]
[1672650176963,5.0,11.134,11.123,8.99]
[1672650178958,13.93,11.135,11.123,8.99]
[1672650179378,8.92,11.124,11.108,50.0]
[1672650179588,0.11927876,11.123,11.112,8.9]
[1672650179797,5.11927876,11.123,11.113,5.0]
[1672650180114,5.11927876,11.123,11.113,8.302562]
[1672650180427,5.11927876,11.123,11.112,8.9]
[1672650180428,5.11927876,11.123,11.114,3.302562]
[1672650181058,5.11927876,11.123,11.112,8.9]
[1672650181059,5.11927876,11.123,11.113,3.302562]
[1672650181266,57.95047876,11.123,11.113,3.302562]
[1672650181690,0.11927876,11.123,11.116,8.92]
[1672650182320,0.11927876,11.123,11.117,3.302562]
[1672650184947,0.11927876,11.123,11.115,3.302562]
[1672650185466,8.96,11.126,11.115,3.302562]
[1672650185891,5.0,11.125,11.115,3.302562]
[1672650186206,5.0,11.125,11.114,3.302562]
[1672650188626,8.99,11.124,11.114,3.302562]
[1672650188941,8.99,11.124,11.112,8.99]
[1672650188942,5.0,11.123,11.113,3.302562]
[1672650189255,53.8,11.123,11.114,5.0]
[1672650189466,48.8,11.123,11.114,5.0]
[1672650189887,5.0,11.122,11.115,3.302562]
[1672650190306,5.0,11.122,11.113,3.302562]
[1672650191885,48.8,11.123,11.113,3.302562]
[1672650192831,48.8,11.123,11.115,8.99]
[1672650193141,5.0,11.122,11.113,12.242562]
[1672650193460,5.0,11.122,11.116,3.302562]
[1672650193664,13.97,11.122,11.106,49.2557]
[1672650193876,5.0,11.118,11.107,8.99]
[1672650194299,5.0,11.118,11.109,5.0]
[1672650194721,13.93,11.118,11.105,8.99]
[1672650195138,13.93,11.118,11.106,3.30442842]
[1672650195345,8.98,11.115,11.106,3.30442842]
[1672650195557,5.0,11.112,11.101,8.99]
[1672650195764,5.0,11.112,11.102,5.0]
[1672650195981,5.0,11.112,11.102,8.30496455]
[1672650196401,56.3483,11.112,11.103,3.30496455]
[1672650196605,8.93,11.115,11.103,3.30496455]
[1672650196815,58.2774,11.115,11.102,8.92]
[1672650197023,5.0,11.114,11.102,8.92]
[1672650198076,8.99,11.113,11.1,8.9]
[1672650198291,5.0,11.114,11.103,5.0]
[1672650198711,5.0,11.114,11.102,8.91]
[1672650198919,5.0,11.114,11.088,50.0]
[1672650198920,5.0,11.108,11.096,8.99]
[1672650199130,8.93,11.102,11.089,8.9]
[1672650199335,8.99,11.103,11.09,8.94]
[1672650199551,5.0,11.101,11.09,13.94]
[1672650199762,5.0,11.101,11.091,5.0]
[1672650200182,8.99,11.103,11.091,5.0]
[1672650200392,8.99,11.103,11.093,5.0]
[1672650200813,8.99,11.103,11.091,8.99]
[1672650201020,8.97,11.101,11.087,8.99]
[1672650201229,8.97,11.101,11.076,5.0]
[1672650201230,8.96,11.096,11.078,50.0]
[1672650201440,8.95,11.094,11.081,8.99]
[1672650201654,5.0,11.093,11.082,5.0]
[1672650201861,5.0,11.093,11.083,8.94]
[1672650202915,13.96,11.098,11.086,8.9]
[1672650203228,67.49,11.113,11.093,9.0]
[1672650203443,54.0817,11.109,11.093,9.0]
[1672650203651,54.0817,11.109,11.088,5.0]
[1672650204592,5.0,11.106,11.088,5.0]
[1672650204801,5.0,11.106,11.094,8.9]
[1672650205428,13.98,11.108,11.098,8.92]
[1672650205639,5.0,11.108,11.098,8.92]
[1672650205852,13.99,11.108,11.096,13.99]
[1672650206274,13.99,11.108,11.097,8.99]
[1672650206480,5.0,11.108,11.097,8.99]
[1672650207012,54.0817,11.109,11.097,8.99]
[1672650207219,54.0817,11.109,11.099,8.91]
[1672650207431,54.0817,11.109,11.1,5.0]
[1672650207849,54.0817,11.109,11.099,8.91]
[1672650208165,5.0,11.108,11.099,8.91]
[1672650208375,5.0,11.108,11.097,8.99]
[1672650209845,54.0817,11.109,11.098,5.0]
[1672650210060,5.0,11.113,11.1,8.98]
[1672650210376,50.1982,11.112,11.101,8.99]
[1672650210688,13.99,11.111,11.098,13.92]
[1672650211006,5.0,11.109,11.097,8.95]
[1672650212793,5.0,11.106,11.094,8.99]
[1672650213005,5.0,11.104,11.094,8.99]
[1672650213635,8.97,11.107,11.094,8.99]
[1672650213845,52.1704,11.108,11.099,8.91]
[1672650214268,52.1704,11.108,11.1,5.0]
[1672650214995,52.1704,11.108,11.097,8.94]
[1672650214996,5.0,11.107,11.097,8.94]
[1672650215624,5.0,11.105,11.094,8.99]
[1672650216047,8.99,11.103,11.091,8.92]
[1672650216257,5.0,11.102,11.092,5.0]
[1672650216888,55.7063,11.102,11.092,5.0]
[1672650217099,50.7063,11.102,11.092,13.99]
[1672650218050,5.0,11.101,11.092,8.99]
[1672650219311,50.7063,11.102,11.092,8.99]
[1672650219623,50.7063,11.102,11.089,5.11982134]
[1672650219624,9.07924746,11.105,11.094,8.98]
[1672650219941,5.0,11.117,11.103,5.11982134]
[1672650220146,5.0,11.117,11.104,0.11982134]
[1672650220353,8.97,11.115,11.104,0.11982134]
[1672650220571,5.0,11.114,11.104,0.11982134]
[1672650220886,8.92,11.111,11.099,9.02982134]
[1672650221197,0.35946401,11.103,11.099,9.02982134]
[1672650223404,0.35946401,11.103,11.102,8.95]
[1672650223614,5.0,11.112,11.103,5.0]
[1672650223938,13.99,11.115,11.103,5.0]
[1672650224147,13.99,11.115,11.102,8.95]
[1672650224352,13.99,11.115,11.104,8.9]
[1672650224562,13.99,11.115,11.102,8.93]
[1672650224771,54.2206,11.114,11.103,5.0]
[1672650225089,5.0,11.113,11.104,8.95]
[1672650225298,13.99,11.115,11.104,8.95]
[1672650225505,54.2206,11.118,11.107,8.98]
[1672650225715,5.0,11.115,11.107,8.98]
[1672650225929,5.0,11.116,11.107,8.98]
[1672650229706,54.2206,11.118,11.108,8.92]
[1672650230547,5.0,11.117,11.108,8.92]
[1672650232550,54.2206,11.118,11.108,8.92]
[1672650232962,8.99,11.121,11.105,0.11925628]
[1672650232963,543.2209505,11.128,11.115,8.93]
[1672650233180,8.97,11.128,11.109,5.0]
[1672650233389,8.97,11.128,11.11,0.11925628]
[1672650233390,56.3064,11.127,11.11,0.11925628]
[1672650233596,5.0,11.126,11.11,0.11925628]
[1672650234233,58.9,11.123,11.11,9.10925628]
[1672650234441,5.0,11.122,11.111,0.11925628]
[1672650235283,52.8623,11.121,11.111,0.11925628]
[1672650235494,5.0,11.12,11.111,0.11925628]
[1672650236751,5.0,11.12,11.111,9.08925628]
[1672650237282,4.80306371,11.12,11.112,8.96]
[1672650237597,57.8623,11.121,11.112,8.96]
[1672650238013,9.02,11.128,11.117,8.96]
[1672650238222,5.0,11.127,11.118,8.97]
[1672650239064,61.2308,11.128,11.118,8.97]
[1672650239278,52.2108,11.128,11.118,8.97]
[1672650239485,5.0,11.127,11.118,8.97]
[1672650242012,52.2108,11.128,11.118,8.97]
[1672650245268,52.2108,11.128,11.12,9.02]
[1672650246630,9.02,11.139,11.127,8.97]
[1672650246844,9.02,11.139,11.128,5.11925628]
[1672650247064,5.0,11.138,11.128,5.11925628]
[1672650247470,66.0592,11.138,11.128,0.11925628]
[1672650247896,66.0592,11.138,11.127,8.97]
[1672650248214,61.0592,11.138,11.127,8.97]
[1672650248419,5.0,11.137,11.127,8.97]
[1672650248949,5.0,11.137,11.123,5.0]
[1672650248950,26.79010288,11.125,11.124,9.02]
[1672650249790,26.79010288,11.125,11.12,9.02]
[1672650250307,26.79010288,11.125,11.121,8.96]
[1672650250734,26.79010288,11.125,11.123,9.02]
[1672650251786,0.0084452,11.125,11.124,8.96]
[1672650251999,26.88202891,11.132,11.125,5.0]
[1672650252729,9.02,11.137,11.125,5.0]
[1672650253361,9.01,11.135,11.124,8.96]
[1672650253679,5.0,11.134,11.124,8.96]
[1672650254834,9.02,11.136,11.124,8.96]
[1672650255254,5.0,11.135,11.124,8.96]
[1672650255566,9.02,11.136,11.124,8.96]
[1672650255783,9.02,11.139,11.128,9.02]
[1672650255990,14.02,11.138,11.127,8.96]
[1672650256197,5.0,11.137,11.128,5.0]
[1672650256414,5.0,11.137,11.128,14.02]
[1672650256938,9.02,11.136,11.127,8.94]
[1672650257561,9.02,11.136,11.125,13.97]
[1672650259031,5.0,11.135,11.125,8.97]
[1672650259244,9.01,11.13,11.107,55.0]
[1672650259458,56.3532,11.129,11.119,8.94]
[1672650259662,5.0,11.128,11.119,8.94]
[1672650260297,5.0,11.128,11.112,56.7684]
[1672650260298,9.01,11.131,11.12,9.02]
[1672650260616,5.0,11.13,11.12,9.02]
[1672650262602,51.3532,11.134,11.121,5.0]
[1672650262818,51.3532,11.134,11.124,8.98]
[1672650264393,5.0,11.133,11.124,8.98]
[1672650264604,14.02,11.133,11.122,9.02]
[1672650264814,5.0,11.132,11.123,5.0]
[1672650265026,9.02,11.13,11.121,0.11989815]
[1672650265239,13.93,11.129,11.121,0.11989815]
[1672650265446,13.93,11.129,11.117,8.97]
[1672650265659,5.0,11.128,11.119,8.97]
[1672650265974,5.0,11.128,11.121,9.02]
[1672650266187,5.0,11.13,11.122,5.0]
[1672650266498,0.1196331,11.131,11.122,5.0]
[1672650267553,0.1196331,11.131,11.121,9.02]
[1672650269550,9.1396331,11.131,11.121,5.0]
[1672650270175,0.1196331,11.131,11.123,9.02]
[1672650272063,9.01,11.125,11.113,8.94]
[1672650272278,5.0,11.124,11.115,9.02]
[1672650272488,5.0,11.124,11.117,8.94]
[1672650272703,5.1196331,11.132,11.119,8.94]
[1672650272704,9.02,11.131,11.119,8.94]